fUST/lending_fUST_20250720
["ID","MTS","AMOUNT","RATE_DAILY","PERIOD"]
[373388747,1752983440082,-460.0,0.00018179,2]
[373388749,1752983440092,-460.0,0.00018179,2]
[373388751,1752983440101,-500.0,0.00018179,2]
[373388753,1752983440110,-500.0,0.00018179,2]
[373388755,1752983440119,-445.38763467,0.00018179,2]
[373388757,1752983440129,-1019.14,0.00018179,2]
[373388759,1752983440138,-1019.14,0.00018179,2]
[373388761,1752983440148,-1019.14,0.00018179,2]
[373388762,1752983440158,-1019.14,0.00018179,2]
[373388764,1752983440168,-460.0,0.00018179,2]
[373388766,1752983440177,-460.0,0.00018179,2]
[373388768,1752983440186,-460.0,0.00018179,2]
[373388770,1752983440195,-460.0,0.00018179,2]
[373388772,1752983440205,-460.0,0.0001818,2]
[373388774,1752983440214,-491.33392352,0.0001818,2]
[373388776,1752983440223,-461.19875926,0.0001818,2]
[373388778,1752983440233,-460.0,0.0001818,2]
[373388780,1752983440243,-462.56908952,0.0001818,2]
[373388782,1752983440252,-461.87191271,0.0001818,2]
[373388784,1752983440262,-461.43696728,0.0001818,2]
[373388786,1752983440272,-460.0,0.0001818,2]
[373388788,1752983440281,-460.0,0.0001818,2]
[373388790,1752983440290,-460.0,0.0001818,2]
[373388792,1752983440299,-460.0,0.0001818,2]
[373388795,1752983440309,-460.0,0.0001818,2]
[373388797,1752983440319,-607.56,0.0001818,2]
[373388799,1752983440328,-1019.14,0.0001818,2]
[373388801,1752983440338,-463.61114389,0.0001818,2]
[373388803,1752983440348,-460.0,0.0001818,2]
[373388805,1752983440357,-460.0,0.0001818,2]
[373388806,1752983440366,-1285.42,0.0001818,2]
[373388808,1752983440375,-3001.61,0.0001818,2]
[373388810,1752983440385,-1019.14,0.00018181,2]
[373388812,1752983440394,-462.56908928,0.00018182,2]
[373388814,1752983440403,-751.75,0.00018182,2]
[373388816,1752983440413,-461.66561877,0.00018182,2]
[373388818,1752983440423,-1036.92,0.00018182,2]
[373388821,1752983440433,-460.0,0.00018182,2]
[373388822,1752983440442,-460.0,0.00018351,2]
[373388824,1752983440451,-460.0,0.00018351,2]
[373388826,1752983440460,-460.0,0.00018351,2]
[373388828,1752983440469,-1186.22,0.00018351,2]
[373388830,1752983440478,-466.1690313,0.00018352,2]
[373388832,1752983440487,-462.61512538,0.00018352,2]
[373388834,1752983440497,-460.0,0.00018352,2]
[373388836,1752983440506,-460.0,0.00018352,2]
[373388838,1752983440515,-460.0,0.00018352,2]
[373388840,1752983440524,-460.0,0.00018352,2]
[373388842,1752983440534,-460.0,0.00018352,2]
[373388844,1752983440543,-460.0,0.00018352,2]
[373388846,1752983440552,-460.0,0.00018352,2]
[373388848,1752983440561,-460.0,0.00018352,2]
[373388850,1752983440570,-460.0,0.00018352,2]
[373388852,1752983440579,-460.0,0.00018352,2]
[373388854,1752983440588,-460.0,0.00018352,2]
[373388856,1752983440597,-460.0,0.00018352,2]
[373388858,1752983440607,-460.0,0.00018352,2]
[373388860,1752983440616,-460.0,0.00018352,2]
[373388862,1752983440625,-460.0,0.00018352,2]
[373388864,1752983440634,-460.0,0.00018352,2]
[373388866,1752983440643,-460.0,0.00018352,2]
[373388868,1752983440652,-460.0,0.00018352,2]
[373388870,1752983440662,-460.0,0.00018352,2]
[373388872,1752983440672,-460.0,0.00018352,2]
[373388874,1752983440681,-460.0,0.00018352,2]
[373388876,1752983440690,-460.0,0.00018352,2]
[373388878,1752983440699,-460.0,0.00018352,2]
[373388880,1752983440708,-460.0,0.00018352,2]
[373388882,1752983440717,-460.0,0.00018352,2]
[373388884,1752983440726,-460.0,0.00018352,2]
[373388886,1752983440735,-460.0,0.00018352,2]
[373388888,1752983440744,-460.0,0.00018352,2]
[373388890,1752983440753,-460.0,0.00018352,2]
[373388892,1752983440762,-460.0,0.00018352,2]
[373388894,1752983440772,-1131.3,0.00018352,2]
[373388896,1752983440781,-460.0,0.00018352,2]
[373388898,1752983440790,-508.50904511,0.00018352,2]
[373388900,1752983440799,-460.0,0.00018352,2]
[373388902,1752983440808,-460.0,0.00018352,2]
[373388904,1752983440817,-460.0,0.00018352,2]
[373388906,1752983440826,-460.0,0.00018352,2]
[373388908,1752983440835,-460.0,0.00018352,2]
[373388910,1752983440844,-460.0,0.00018352,2]
[373388912,1752983440852,-460.0,0.00018352,2]
[373388914,1752983440861,-460.0,0.00018352,2]
[373388916,1752983440871,-460.0,0.00018352,2]
[373388918,1752983440879,-460.0,0.00018352,2]
[373388920,1752983440888,-460.0,0.00018352,2]
[373388922,1752983440898,-460.0,0.00018352,2]
[373388924,1752983440908,-629.3,0.00018352,2]
[373388926,1752983440919,-460.0,0.00018352,2]
[373388928,1752983440930,-520.75024871,0.00018352,2]
[373388930,1752983440939,-460.0,0.00018352,2]
[373388932,1752983440948,-1019.14,0.00018352,2]
[373388934,1752983440958,-463.6176202,0.00018352,2]
[373388936,1752983440968,-460.0,0.00018352,2]
[373388938,1752983440978,-460.0,0.00018352,2]
[373388940,1752983440987,-498.33,0.00018352,2]
[373388942,1752983440997,-460.0,0.00018352,2]
[373388944,1752983441007,-456.7044824,0.00018352,2]
[373388946,1752983441017,-460.0,0.00018352,2]
[373388948,1752983441032,-578.54798297,0.00018352,2]
[373388950,1752983441041,-460.0,0.00018352,2]
[373388953,1752983441052,-460.0,0.00018352,2]
[373388955,1752983441062,-460.0,0.00018352,2]
[373388957,1752983441072,-460.0,0.00018352,2]
[373388959,1752983441082,-460.0,0.00018352,2]
[373388960,1752983441091,-463.33362544,0.00018352,2]
[373388962,1752983441100,-460.0,0.00018352,2]
[373388965,1752983441110,-460.0,0.00018352,2]
[373388967,1752983441119,-460.0,0.00018352,2]
[373388969,1752983441129,-460.0,0.00018352,2]
[373388971,1752983441139,-460.0,0.00018352,2]
[373388973,1752983441148,-460.0,0.00018352,2]
[373388974,1752983441158,-460.0,0.00018352,2]
[373388976,1752983441167,-579.55,0.00018352,2]
[373388979,1752983441177,-463.15140342,0.00018352,2]
[373388981,1752983441187,-460.0,0.00018352,2]
[373388983,1752983441196,-460.0,0.00018352,2]
[373388985,1752983441205,-460.0,0.00018352,2]
[373388987,1752983441214,-460.0,0.00018352,2]
[373388989,1752983441223,-460.0,0.00018352,2]
[373389001,1752983441329,-460.0,0.00018352,2]
[373389003,1752983441339,-460.0,0.00018352,2]
[373389005,1752983441348,-476.63845343,0.00018352,2]
[373389007,1752983441357,-471.52297033,0.00018352,2]
[373389009,1752983441366,-460.0,0.00018352,2]
[373389011,1752983441375,-460.0,0.00018352,2]
[373389013,1752983441385,-352.5228111,0.00018352,2]
[373389015,1752983441395,-460.0,0.00018352,2]
[373389017,1752983441404,-460.0,0.00018352,2]
[373389019,1752983441415,-2292.08,0.00018352,2]
[373389021,1752983441424,-460.0,0.00018352,2]
[373389023,1752983441434,-460.0,0.00018352,2]
[373389025,1752983441443,-460.0,0.00018352,2]
[373389027,1752983441451,-460.0,0.00018352,2]
[373389029,1752983441460,-475.07,0.00018352,2]
[373389031,1752983441470,-460.0,0.00018352,2]
[373389033,1752983441480,-460.0,0.00018352,2]
[373389035,1752983441489,-460.0,0.00018352,2]
[373389037,1752983441499,-460.0,0.00018352,2]
[373389039,1752983441508,-460.0,0.00018352,2]
[373389041,1752983441517,-460.0,0.00018352,2]
[373389043,1752983441527,-467.25125562,0.00018352,2]
[373389045,1752983441536,-460.0,0.00018352,2]
[373389047,1752983441546,-464.94,0.00018352,2]
[373389049,1752983441555,-460.0,0.00018352,2]
[373389051,1752983441563,-501.49612056,0.00018352,2]
[373389053,1752983441573,-460.0,0.00018352,2]
[373389055,1752983441582,-460.0,0.00018352,2]
[373389057,1752983441591,-460.0,0.00018352,2]
[373389059,1752983441600,-460.0,0.00018352,2]
[373389062,1752983441609,-460.0,0.00018352,2]
[373389064,1752983441619,-460.0,0.00018352,2]
[373389065,1752983441627,-460.0,0.00018352,2]
[373389067,1752983441636,-505.25433279,0.00018352,2]
[373389069,1752983441647,-463.27959555,0.00018353,2]
[373389071,1752983441656,-460.0,0.00018353,2]
[373389073,1752983441666,-460.0,0.00018353,2]
[373389075,1752983441675,-513.29131247,0.00018353,2]
[373389078,1752983441685,-460.0,0.00018353,2]
[373389079,1752983441694,-460.0,0.00018353,2]
[373389081,1752983441703,-461.84691379,0.00018353,2]
[373389083,1752983441712,-463.74689393,0.00018353,2]
[373389085,1752983441721,-460.0,0.00018353,2]
[373389087,1752983441730,-196.54814748,0.00018353,2]
[373389089,1752983441740,-460.0,0.00018353,2]
[373389091,1752983441749,-464.52824565,0.00018353,2]
[373389093,1752983441758,-460.0,0.00018353,2]
[373389095,1752983441767,-460.0,0.00018353,2]
[373389097,1752983441776,-469.57851181,0.00018353,2]
[373389099,1752983441786,-460.0,0.00018353,2]
[373389101,1752983441795,-544.82755537,0.00018353,2]
[373389104,1752983441804,-460.0,0.00018353,2]
[373389106,1752983441825,-462.54024029,0.00018353,2]
[373389108,1752983441846,-460.0,0.00018353,2]
[373389109,1752983441856,-460.0,0.00018353,2]
[373389112,1752983441865,-460.0,0.00018353,2]
[373389114,1752983441875,-460.0,0.00018353,2]
[373389116,1752983441884,-462.90058989,0.00018353,2]
[373389118,1752983441893,-460.0,0.00018353,2]
[373389120,1752983441903,-460.0,0.00018353,2]
[373389121,1752983441913,-464.0640637,0.00018353,2]
[373389124,1752983441927,-460.0,0.00018353,2]
[373389126,1752983441936,-466.77068188,0.00018353,2]
[373389128,1752983441945,-461.54402447,0.00018353,2]
[373389130,1752983441954,-460.0,0.00018353,2]
[373389132,1752983441964,-460.0,0.00018353,2]
[373389134,1752983441973,-460.0,0.00018353,2]
[373389136,1752983441983,-1321.89,0.00018353,2]
[373389138,1752983441993,-460.0,0.00018353,2]
[373389140,1752983442006,-460.0,0.00018353,2]
[373389142,1752983442015,-460.0,0.00018353,2]
[373389144,1752983442025,-460.0,0.00018353,2]
[373389146,1752983442034,-1019.14,0.00018353,2]
[373389148,1752983442044,-1019.14,0.00018353,2]
[373389150,1752983442053,-1019.14,0.00018353,2]
[373389152,1752983442062,-460.0,0.00018353,2]
[373389154,1752983442072,-460.0,0.00018353,2]
[373389156,1752983442081,-1417.4,0.00018353,2]
[373389158,1752983442091,-460.0,0.00018353,2]
[373389160,1752983442100,-460.0,0.00018353,2]
[373389162,1752983442110,-460.0,0.00018353,2]
[373389164,1752983442120,-460.0,0.00018353,2]
[373389166,1752983442130,-555.83,0.00018353,2]
[373389168,1752983442140,-460.0,0.00018353,2]
[373389170,1752983442149,-998.75,0.00018353,2]
[373389172,1752983442159,-460.0,0.00018353,2]
[373389174,1752983442169,-460.0,0.00018353,2]
[373389176,1752983442179,-477.87,0.00018353,2]
[373389178,1752983442188,-465.97451558,0.00018353,2]
[373389180,1752983442198,-460.0,0.00018353,2]
[373389182,1752983442207,-4300.79,0.00018353,2]
[373389183,1752983442216,-460.0,0.00018353,2]
[373389184,1752983442226,-460.0,0.00018353,2]
[373389185,1752983442235,-1019.14,0.00018354,2]
[373389186,1752983442244,-1019.14,0.00018354,2]
[373389187,1752983442255,-1019.14,0.00018354,2]
[373389188,1752983442263,-1019.14,0.00018354,2]
[373389189,1752983442273,-1019.14,0.00018354,2]
[373389190,1752983442282,-1019.14,0.00018354,2]
[373389191,1752983442292,-1019.14,0.00018354,2]
[373389192,1752983442302,-1019.14,0.00018354,2]
[373389193,1752983442311,-1019.14,0.00018354,2]
[373389194,1752983442320,-1019.14,0.00018354,2]
[373389195,1752983442329,-1019.14,0.00018354,2]
[373389196,1752983442338,-1019.14,0.00018354,2]
[373389197,1752983442347,-1019.14,0.00018354,2]
[373389198,1752983442356,-1019.36460259,0.00018354,2]
[373389199,1752983442365,-1826.24,0.00018354,2]
[373389200,1752983442374,-460.0,0.00018354,2]
[373389201,1752983442383,-460.0,0.00018354,2]
[373389202,1752983442391,-461.71202458,0.00018354,2]
[373389203,1752983442400,-460.0,0.00018451,2]
[373389204,1752983442410,-460.0,0.00018452,2]
[373389205,1752983442419,-460.0,0.00018452,2]
[373389207,1752983442429,-460.0,0.00018452,2]
[373389210,1752983442438,-460.0,0.00018452,2]
[373389211,1752983442447,-460.0,0.00018452,2]
[373389213,1752983442457,-460.0,0.00018452,2]
[373389215,1752983442467,-460.0,0.00018452,2]
[373389217,1752983442475,-460.0,0.00018452,2]
[373389219,1752983442485,-460.0,0.00018452,2]
[373389222,1752983442496,-460.0,0.00018452,2]
[373389224,1752983442505,-460.0,0.00018452,2]
[373389225,1752983442514,-460.0,0.00018452,2]
[373389228,1752983442524,-487.6,0.00018452,2]
[373389229,1752983442533,-460.0,0.00018452,2]
[373389232,1752983442543,-552.69974935,0.00018452,2]
[373389233,1752983442552,-460.0,0.00018452,2]
[373389235,1752983442561,-462.77438072,0.00018452,2]
[373389237,1752983442571,-460.0,0.00018452,2]
[373389240,1752983442581,-460.0,0.00018452,2]
[373389243,1752983442590,-479.16,0.00018452,2]
[373389244,1752983442599,-463.14405445,0.00018452,2]
[373389247,1752983442608,-460.0,0.00018452,2]
[373389248,1752983442618,-460.0,0.00018452,2]
[373389250,1752983442627,-460.0,0.00018452,2]
[373389252,1752983442637,-460.0,0.00018452,2]
[373389254,1752983442646,-460.0,0.00018452,2]
[373389257,1752983442656,-460.0,0.00018452,2]
[373389258,1752983442667,-460.0,0.00018452,2]
[373389260,1752983442676,-460.0,0.00018452,2]
[373389262,1752983442685,-460.0,0.00018452,2]
[373389264,1752983442695,-460.0,0.00018452,2]
[373389266,1752983442705,-460.0,0.00018452,2]
[373389268,1752983442715,-511.55253661,0.00018452,2]
[373389270,1752983442725,-460.0,0.00018452,2]
[373389272,1752983442734,-460.0,0.00018452,2]
[373389274,1752983442744,-460.0,0.00018452,2]
[373389276,1752983442753,-463.01139426,0.00018452,2]
[373389278,1752983442763,-463.87945756,0.00018452,2]
[373389280,1752983442772,-460.0,0.00018452,2]
[373389282,1752983442781,-460.0,0.00018452,2]
[373389284,1752983442790,-460.0,0.00018452,2]
[373389286,1752983442799,-460.0,0.00018452,2]
[373389288,1752983442809,-460.0,0.00018452,2]
[373389290,1752983442819,-460.0,0.00018452,2]
[373389292,1752983442828,-460.0,0.00018452,2]
[373389294,1752983442837,-460.0,0.00018452,2]
[373389296,1752983442847,-460.0,0.00018453,2]
[373389298,1752983442855,-737.0,0.00018453,2]
[373389300,1752983442866,-460.0,0.00018453,2]
[373389302,1752983442875,-460.0,0.00018453,2]
[373389304,1752983442885,-460.0,0.00018453,2]
[373389306,1752983442894,-460.0,0.00018453,2]
[373389308,1752983442903,-460.0,0.00018453,2]
[373389310,1752983442921,-460.0,0.00018453,2]
[373389312,1752983442930,-460.0,0.00018453,2]
[373389314,1752983442939,-460.0,0.00018453,2]
[373389316,1752983442948,-461.43117658,0.00018454,2]
[373389318,1752983442958,-460.0,0.00018454,2]
[373389320,1752983442968,-460.0,0.00018454,2]
[373389322,1752983442977,-607.56,0.00018454,2]
[373389324,1752983442986,-460.0,0.00018454,2]
[373389326,1752983442996,-460.0,0.00018454,2]
[373389328,1752983443006,-1285.42,0.00018454,2]
[373389330,1752983443015,-3001.61,0.00018454,2]
[373389332,1752983443024,-751.75,0.00018456,2]
[373389334,1752983443033,-1036.92,0.00018456,2]
[373389336,1752983443042,-460.0,0.00018456,2]
[373389337,1752983443051,-352.0,0.0001854,2]
[373389339,1752983443061,-151.0,0.00018558,2]
[373389341,1752983443070,-1511.79889742,0.00018592,2]
[373389343,1752983443081,-460.0,0.00018625,2]
[373389345,1752983443091,-460.0,0.00018625,2]
[373389347,1752983443100,-460.0,0.00018625,2]
[373389349,1752983443109,-1186.22,0.00018625,2]
[373389351,1752983443119,-460.0,0.00018626,2]
[373389353,1752983443128,-460.0,0.00018626,2]
[373389355,1752983443138,-460.0,0.00018626,2]
[373389357,1752983443147,-460.0,0.00018626,2]
[373389359,1752983443156,-460.0,0.00018626,2]
[373389361,1752983443168,-464.02653358,0.00018626,2]
[373389363,1752983443178,-460.0,0.00018626,2]
[373389365,1752983443187,-460.0,0.00018626,2]
[373389367,1752983443196,-460.0,0.00018626,2]
[373389369,1752983443206,-460.0,0.00018626,2]
[373389371,1752983443215,-568.15648088,0.00018626,2]
[373389373,1752983443225,-460.0,0.00018626,2]
[373389375,1752983443234,-463.85411066,0.00018626,2]
[373389377,1752983443244,-460.0,0.00018626,2]
[373389379,1752983443254,-460.0,0.00018626,2]
[373389381,1752983443263,-460.0,0.00018626,2]
[373389383,1752983443273,-464.55129438,0.00018626,2]
[373389385,1752983443282,-460.0,0.00018626,2]
[373389387,1752983443291,-460.0,0.00018626,2]
[373389389,1752983443301,-460.0,0.00018626,2]
[373389391,1752983443311,-460.0,0.00018626,2]
[373389394,1752983443320,-460.0,0.00018626,2]
[373389396,1752983443330,-460.0,0.00018626,2]
[373389397,1752983443339,-460.0,0.00018626,2]
[373389400,1752983443349,-466.57782817,0.00018626,2]
[373389402,1752983443359,-460.0,0.00018626,2]
[373389404,1752983443369,-460.0,0.00018626,2]
[373389405,1752983443378,-557.01906639,0.00018626,2]
[373389407,1752983443387,-460.0,0.00018626,2]
[373389409,1752983443396,-1131.3,0.00018626,2]
[373389411,1752983443405,-463.07156495,0.00018626,2]
[373389413,1752983443414,-460.0,0.00018626,2]
[373389415,1752983443424,-460.0,0.00018626,2]
[373389417,1752983443433,-467.26433893,0.00018626,2]
[373389419,1752983443442,-460.0,0.00018626,2]
[373389421,1752983443452,-460.0,0.00018626,2]
[373389423,1752983443462,-460.0,0.00018626,2]
[373389425,1752983443471,-460.0,0.00018626,2]
[373389427,1752983443481,-629.3,0.00018626,2]
[373389429,1752983443490,-460.0,0.00018626,2]
[373389431,1752983443499,-460.0,0.00018626,2]
[373389433,1752983443509,-460.0,0.00018626,2]
[373389435,1752983443519,-466.04393836,0.00018626,2]
[373389437,1752983443529,-498.33,0.00018626,2]
[373389439,1752983443538,-460.0,0.00018626,2]
[373389441,1752983443547,-465.78434333,0.00018626,2]
[373389443,1752983443557,-460.0,0.00018626,2]
[373389445,1752983443566,-460.0,0.00018626,2]
[373389447,1752983443576,-518.56050971,0.00018626,2]
[373389449,1752983443586,-460.0,0.00018626,2]
[373389451,1752983443595,-460.0,0.00018626,2]
[373389453,1752983443604,-460.0,0.00018626,2]
[373389455,1752983443614,-460.0,0.00018626,2]
[373389457,1752983443624,-363.69608515,0.00018626,2]
[373389459,1752983443633,-525.60502739,0.00018626,2]
[373389461,1752983443643,-579.55,0.00018626,2]
[373389463,1752983443652,-460.0,0.00018626,2]
[373389465,1752983443663,-460.0,0.00018626,2]
[373389467,1752983443672,-460.0,0.00018626,2]
[373389469,1752983443682,-460.0,0.00018626,2]
[373389471,1752983443691,-462.67480493,0.00018626,2]
[373389473,1752983443701,-460.0,0.00018626,2]
[373389475,1752983443710,-460.0,0.00018626,2]
[373389477,1752983443719,-2292.08,0.00018626,2]
[373389479,1752983443729,-460.0,0.00018626,2]
[373389481,1752983443738,-460.0,0.00018626,2]
[373389483,1752983443747,-460.0,0.00018626,2]
[373389485,1752983443757,-462.826328,0.00018626,2]
[373389487,1752983443766,-475.07,0.00018626,2]
[373389489,1752983443775,-460.0,0.00018626,2]
[373389491,1752983443785,-460.0,0.00018626,2]
[373389493,1752983443795,-474.19355131,0.00018626,2]
[373389495,1752983443804,-460.0,0.00018626,2]
[373389497,1752983443814,-460.0,0.00018626,2]
[373389499,1752983443824,-464.94,0.00018626,2]
[373389501,1752983443833,-460.0,0.00018626,2]
[373389503,1752983443843,-460.0,0.00018626,2]
[373389505,1752983443851,-460.0,0.00018626,2]
[373389507,1752983443861,-460.0,0.00018626,2]
[373389509,1752983443870,-460.0,0.00018626,2]
[373389510,1752983443879,-460.0,0.00018626,2]
[373389512,1752983443889,-460.0,0.00018627,2]
[373389523,1752983443899,-463.86360476,0.00018627,2]
[373389527,1752983444012,-460.0,0.00018627,2]
[373389529,1752983444021,-466.10827602,0.00018627,2]
[373389531,1752983444031,-465.48833241,0.00018627,2]
[373389533,1752983444040,-541.73092169,0.00018627,2]
[373389535,1752983444049,-464.41613691,0.00018627,2]
[373389537,1752983444058,-213.41095095,0.00018627,2]
[373389539,1752983444067,-460.0,0.00018627,2]
[373389541,1752983444077,-467.72107874,0.00018627,2]
[373389543,1752983444087,-460.0,0.00018627,2]
[373389545,1752983444096,-460.0,0.00018627,2]
[373389547,1752983444106,-460.0,0.00018627,2]
[373389549,1752983444116,-1321.89,0.00018627,2]
[373389551,1752983444125,-460.0,0.00018627,2]
[373389553,1752983444135,-460.0,0.00018627,2]
[373389555,1752983444144,-460.0,0.00018627,2]
[373389556,1752983444153,-488.87704508,0.00018627,2]
[373389558,1752983444163,-1417.4,0.00018627,2]
[373389560,1752983444172,-460.0,0.00018627,2]
[373389562,1752983444182,-460.0,0.00018627,2]
[373389564,1752983444192,-460.0,0.00018627,2]
[373389566,1752983444202,-555.83,0.00018627,2]
[373389568,1752983444211,-460.0,0.00018627,2]
[373389570,1752983444220,-998.75,0.00018627,2]
[373389572,1752983444229,-460.0,0.00018627,2]
[373389574,1752983444238,-460.0,0.00018627,2]
[373389576,1752983444247,-477.87,0.00018627,2]
[373389578,1752983444257,-460.0,0.00018627,2]
[373389580,1752983444266,-4300.79,0.00018627,2]
[373389582,1752983444276,-460.0,0.00018627,2]
[373389584,1752983444285,-1826.24,0.00018628,2]
[373389586,1752983444295,-460.0,0.00018628,2]
[373389588,1752983444304,-460.0,0.00018628,2]
[373389590,1752983444313,-155.0,0.00018628,2]
[373389592,1752983444323,-1000.0,0.00018721,2]
[373389594,1752983444332,-1000.0,0.00018721,2]
[373389596,1752983444342,-1000.0,0.00018721,2]
[373389598,1752983444351,-1009.12110116,0.00018721,2]
[373389600,1752983444360,-460.0,0.00018726,2]
[373389602,1752983444369,-460.0,0.00018726,2]
[373389604,1752983444379,-460.0,0.00018726,2]
[373389606,1752983444388,-460.0,0.00018726,2]
[373389608,1752983444397,-460.0,0.00018726,2]
[373389610,1752983444407,-460.0,0.00018726,2]
[373389612,1752983444417,-301.42709037,0.00018726,2]
[373389614,1752983444427,-460.0,0.00018726,2]
[373389616,1752983444437,-460.0,0.00018726,2]
[373389618,1752983444446,-479.16,0.00018726,2]
[373389620,1752983444455,-460.0,0.00018726,2]
[373389622,1752983444464,-460.0,0.00018726,2]
[373389624,1752983444473,-460.0,0.00018726,2]
[373389626,1752983444483,-511.9516689,0.00018726,2]
[373389628,1752983444492,-460.0,0.00018726,2]
[373389630,1752983444501,-460.0,0.00018726,2]
[373389632,1752983444511,-443.14063796,0.00018726,2]
[373389634,1752983444520,-460.0,0.00018726,2]
[373389636,1752983444530,-237.17240886,0.00018726,2]
[373389638,1752983444539,-460.0,0.00018726,2]
[373389640,1752983444548,-460.0,0.00018726,2]
[373389642,1752983444557,-460.0,0.00018726,2]
[373389644,1752983444566,-460.0,0.00018726,2]
[373389646,1752983444575,-464.26304543,0.00018726,2]
[373389648,1752983444584,-189.04360871,0.00018726,2]
[373389650,1752983444593,-450.0,0.00018726,2]
[373389652,1752983444603,-737.0,0.00018727,2]
[373389654,1752983444612,-460.0,0.00018727,2]
[373389656,1752983444621,-460.0,0.00018727,2]
[373389658,1752983444630,-460.0,0.00018727,2]
[373389660,1752983444640,-460.0,0.00018727,2]
[373389662,1752983444649,-460.0,0.00018727,2]
[373389664,1752983444658,-460.0,0.00018727,2]
[373389666,1752983444668,-460.0,0.00018727,2]
[373389668,1752983444677,-463.01106057,0.00018727,2]
[373389670,1752983444686,-607.56,0.00018728,2]
[373389672,1752983444695,-460.0,0.00018728,2]
[373389674,1752983444705,-460.0,0.00018728,2]
[373389676,1752983444714,-1285.42,0.00018728,2]
[373389678,1752983444723,-3001.61,0.00018728,2]
[373389680,1752983444733,-751.75,0.0001873,2]
[373389681,1752983444742,-1036.92,0.0001873,2]
[373389683,1752983444751,-460.0,0.0001873,2]
[373389684,1752983444761,-500.0,0.00018742,2]
[373389685,1752983444770,-153.26308918,0.00018832,2]
[373389686,1752983444779,-152.00772128,0.00018832,2]
[373389687,1752983444788,-151.0,0.00018832,2]
[373389688,1752983444797,-151.44820991,0.00018832,2]
[373389689,1752983444806,-151.0,0.00018832,2]
[373389690,1752983444815,-500.0,0.00018832,2]
[373389692,1752983444824,-153.05023504,0.00018832,2]
[373389694,1752983444833,-154.471327,0.00018832,2]
[373389696,1752983444843,-153.37630986,0.00018832,2]
[373389698,1752983444852,-151.0,0.00018832,2]
[373389700,1752983444862,-151.0,0.00018832,2]
[373389702,1752983444871,-151.0,0.00018832,2]
[373389704,1752983444881,-151.0,0.00018832,2]
[373389706,1752983444890,-151.0,0.00018832,2]
[373389708,1752983444899,-500.0,0.00018832,2]
[373389710,1752983444909,-174.0,0.00018896,2]
[373389712,1752983444921,-460.0,0.00018899,2]
[373389714,1752983444932,-460.0,0.00018899,2]
[373389716,1752983444941,-1186.22,0.00018899,2]
[373389718,1752983444950,-460.0,0.000189,2]
[373389720,1752983444960,-460.0,0.000189,2]
[373389723,1752983444971,-460.0,0.000189,2]
[373389725,1752983444980,-460.0,0.000189,2]
[373389727,1752983444989,-460.0,0.000189,2]
[373389729,1752983444999,-460.0,0.000189,2]
[373389731,1752983445009,-460.0,0.000189,2]
[373389733,1752983445019,-460.0,0.000189,2]
[373389735,1752983445028,-460.0,0.000189,2]